[Event "44th Chess Olympiad Open 2022"]
[Site "Chennai"]
[Date "2022.08.07"]
[Round "9.14"]
[White "Banusz, Tamas"]
[Black "Borisek, Jure"]
[Result "1-0"]
[WhiteElo "2611"]
[BlackElo "2577"]
[Annotator "TA"]
[PlyCount "79"]
[EventDate "2022.??.??"]
[TimeControl "60"]

{[%evp 11,79,14,18,14,17,22,22,15,15,24,6,16,63,51,61,46,31,37,41,20,35,30,71,
76,97,96,96,93,179,203,186,181,185,191,188,197,193,185,192,199,188,175,181,184,
215,202,264,272,251,224,312,311,300,303,295,218,218,225,225,216,217,204,447,
440,440,440,433,432,417,401]} 1. Nf3 {[%emt 0:00:04]} d5 {[%emt 0:00:20]} 2. g3
{[%emt 0:00:06]} Nc6 {[%emt 0:00:18]} 3. d4 {[%emt 0:00:12]} Bf5 {[%emt 0:00:
00]} 4. Bg2 {[%emt 0:00:12]} e6 {[%emt 0:00:09]} 5. O-O {[%emt 0:00:27]} Nb4 {
[%emt 0:00:06]} 6. Na3 {[%emt 0:01:17]} Be7 {[%emt 0:00:07]} 7. c3 {[%emt 0:00:
00] D02:1 d4 d5 2 Nf3 sidelines, including 2...Nf6 3 g3 and 2...Nf6 3 Bf4.} Nc6
{[%emt 0:00:04]} 8. Qa4 $5 {[%emt 0:00:30] Leaves trodden paths.} Nf6 {[%emt 0:
00:14]} 9. Ne5 {[%emt 0:00:38] The position is equal.} O-O {[%emt 0:00:29]} 10.
Nxc6 {[%emt 0:00:14]} bxc6 {[%emt 0:00:03]} 11. Qxc6 {[%emt 0:00:11] [#]} h5
$146 {[%emt 0:00:10]} (11... Rb8 $11) ({Predecessor:} 11... Rb8 12. Qa4 c5 13.
dxc5 Bxc5 14. b4 Bb6 15. Bf4 Rc8 16. Rac1 Ne4 17. c4 dxc4 18. Nxc4 {1-0 (50)
Efimenko,Z (2602)-Bluebaum,M (2647) Chess.com INT 2020}) 12. c4 $14 {[%emt 0:
00:22]} Rb8 {[%emt 0:00:06]} 13. c5 {[%emt 0:00:09]} Qd7 $1 {[%emt 0:00:17]}
14. Qxd7 {[%emt 0:00:20]} Nxd7 {[%emt 0:00:04]} 15. e4 {[%emt 0:02:00]} dxe4 {
[%emt 0:26:58]} 16. Nc4 {[%emt 0:04:54]} Rb4 {[%emt 0:00:00]} 17. b3 $36 {
[%emt 0:03:08] White is in control. White stays focused until the end.} Nb8 {
[%emt 0:02:11]} 18. Bd2 {[%emt 0:07:08]} Rb5 {[%emt 0:00:06]} 19. Na5 {[%emt 0:
02:49] Inhibits Nc6. White is more active.} Bg5 {[%emt 0:10:50]} 20. Bxg5 $18 {
[%emt 0:04:44]} Rxa5 {[%emt 0:00:04]} 21. a4 {[%emt 0:01:33] [#] Prevents Rb5.
aiming for b4.} Nc6 {[%emt 0:05:00]} 22. b4 {[%emt 0:09:44]} Nxb4 {[%emt 0:00:
11]} 23. Bd2 {[%emt 0:00:04]} Nc6 {[%emt 0:00:00][%cal Yb4c6,Yc6a5,Ya5b3]} (
23... Rb8 $2 24. Rfb1 e5 25. Rxb4 $18) 24. Bxa5 {[%emt 0:03:52]} Nxa5 {[%emt 0:
00:03]} 25. Rfe1 {[%emt 0:00:38]} Rd8 {[%emt 0:08:07]} 26. Bxe4 {[%emt 0:10:56]
} Nb3 {[%emt 0:01:16]} 27. Ra3 {[%emt 0:01:13]} Bxe4 {[%emt 0:01:21]} 28. Rxb3
{[%emt 0:17:46]} ({Resist} 28. Rxe4 $6 Nxd4 29. Kg2 Rd5 $16) 28... Rxd4 {
[%emt 0:02:23] Endgame KRR-KRB} 29. Rb8+ {[%emt 0:00:04]} Kh7 {[%emt 0:00:04]}
30. Rc8 {[%emt 0:00:14]} Rxa4 {[%emt 0:08:49]} 31. Rxc7 {[%emt 0:00:36]} Rc4 {
[%emt 0:00:04] Prevents Rc1.} 32. Rxf7 {[%emt 0:01:48] [#] And now Rf4 would
win.} Bd5 {[%emt 0:00:26]} 33. Rxa7 {[%emt 0:00:33]} Rxc5 {[%emt 0:00:03]} 34.
f4 {[%emt 0:08:15]} Kh6 {[%emt 0:05:59]} 35. Re5 {[%emt 0:05:39] Strongly
threatening h4.} g6 {[%emt 0:00:00]} 36. Kf2 {[%emt 0:02:20] Hoping for h4.}
Rc4 $2 {[%emt 0:03:23]} (36... Rc2+ 37. Re2 Rc3) 37. h4 {[%emt 0:02:44]} Rc3 {
[%emt 0:04:12]} 38. Re3 {[%emt 0:00:07] Inhibits Rf3+.} Rc2+ {[%emt 0:00:22]}
39. Ke1 {[%emt 0:00:09]} Rc8 {[%emt 0:02:09]} 40. Re7 {[%emt 0:00:59] Weighted
Error Value: White=0.04 (flawless) /Black=0.22 (precise)} 1-0

[Event "44th Chess Olympiad Open 2022"]
[Site "Chennai"]
[Date "2022.08.07"]
[Round "9.14"]
[White "Erdos, Viktor"]
[Black "Sebenik, Matej"]
[Result "1-0"]
[WhiteElo "2586"]
[BlackElo "2512"]
[Annotator "TA"]
[PlyCount "77"]
[EventDate "2022.??.??"]
[TimeControl "60"]

{[%evp 9,77,0,11,0,2,12,9,13,12,10,19,7,10,9,48,37,82,84,72,59,77,50,51,43,62,
37,57,56,68,32,98,54,130,126,122,118,115,119,127,116,120,119,105,95,298,178,
179,185,188,175,172,181,181,182,187,189,189,166,168,166,203,204,320,329,402,
373,29990,2615,29987,197]} 1. e4 {[%emt 0:00:05]} c5 {[%emt 0:00:16]} 2. Nf3 {
[%emt 0:00:06]} d6 {[%emt 0:00:07]} 3. d4 {[%emt 0:00:05]} cxd4 {[%emt 0:00:05]
} 4. Qxd4 {[%emt 0:00:04]} Nc6 {[%emt 0:00:10]} 5. Qe3 {[%emt 0:00:06]} g6 {
[%emt 0:00:23]} 6. Be2 {[%emt 0:02:41] B53: Sicilian: 2...d6: Lines with Qxd4.}
Bg7 {[%emt 0:00:57]} 7. O-O {[%emt 0:00:18]} Nf6 {[%emt 0:00:04]} 8. Nc3 {
[%emt 0:01:05] The position is equal.} O-O {[%emt 0:00:35]} 9. Rd1 {[%emt 0:00:
00]} Be6 {[%emt 0:01:53]} 10. Nd5 {[%emt 0:01:17]} Rc8 {[%emt 0:11:52]} 11. c3
{[%emt 0:01:15] [#]} Ng4 $146 {[%emt 0:04:16]} (11... Qa5 $5 {[%cal Re6d5]}) ({
Predecessor:} 11... Re8 12. Qf4 Qa5 13. Qh4 Nxd5 14. exd5 Bxd5 15. b4 Bxf3 16.
bxa5 Bxe2 17. Rd5 Bxc3 {½-½ (33) Esipenko,A (2677)-Vachier Lagrave,M (2784)
Wijk aan Zee 2021}) 12. Qf4 {[%emt 0:20:22]} h6 {[%emt 0:08:38]} 13. Qg3 {
[%emt 0:03:54]} Nge5 {[%emt 0:03:18][%cal Yg4e5,Ye5g6,Yg6h4]} 14. Ne1 {[%emt 0:
13:52] White is more active.} Nb8 {[%emt 0:17:03]} 15. Qh4 {[%emt 0:00:00]} g5
{[%emt 0:00:43]} 16. Qg3 {[%emt 0:00:04]} Ng6 {[%emt 0:01:58] Against h4} 17.
Nd3 {[%emt 0:06:44] f4 is the strong threat.} Rc4 {[%emt 0:00:00]} 18. f3 {
[%emt 0:03:12]} Nd7 {[%emt 0:09:43]} 19. Ne3 {[%emt 0:01:38]} Rc8 {[%emt 0:02:
17]} (19... Ra4 $14) 20. Nf5 {[%emt 0:03:38]} Bxf5 {[%emt 0:22:26]} (20... Nf6
$14) 21. exf5 $16 {[%emt 0:01:42]} Nh4 {[%emt 0:00:02] [#]} 22. Qh3 {[%emt 0:
01:51] Hoping for g3.} Qa5 {[%emt 0:01:29]} 23. f4 {[%emt 0:00:33]} Nxf5 {
[%emt 0:01:06]} 24. fxg5 {[%emt 0:00:26]} hxg5 {[%emt 0:00:04]} 25. Bg4 {
[%emt 0:04:22]} e6 {[%emt 0:00:16]} (25... Qb6+ $2 26. Kh1 e6 27. Bxf5 (27.
Bxg5 Qb5 $16) 27... exf5 28. Qxf5 $18) 26. Bxg5 {[%emt 0:02:01] Strongly
threatening Rf1.} Nf6 $2 {[%emt 0:01:10] [#] Black cannot hold the game after
this.} (26... Qb6+ $16 {is a better defense.} 27. Kh1 Qb5) 27. Bxf5 {[%emt 0:
00:00]} (27. Bxf6 $142 Bxf6 28. Rf1) 27... Qxf5 $18 {[%emt 0:00:11]} 28. Qxf5
$40 {[%emt 0:00:31] White has strong attack.} exf5 {[%emt 0:00:02]} 29. Bxf6 {
[%emt 0:00:12]} Bxf6 {[%emt 0:00:03]} 30. Rf1 {[%emt 0:00:09]} Be5 {[%emt 0:04:
20]} 31. Rxf5 {[%emt 0:00:12]} f6 {[%emt 0:00:02]} 32. Raf1 {[%emt 0:01:08]}
Kg7 {[%emt 0:00:11]} 33. g4 {[%emt 0:02:48]} Rc4 {[%emt 0:00:00]} 34. h3 {
[%emt 0:00:10]} Rh8 {[%emt 0:01:45]} 35. Kg2 {[%emt 0:00:40]} Re4 {[%emt 0:01:
11]} (35... Rh6 $142 36. Nxe5 dxe5) 36. Nxe5 {[%emt 0:07:18]} Re2+ {[%emt 0:00:
03]} 37. Kg3 {[%emt 0:00:24]} fxe5 {[%emt 0:02:00]} (37... dxe5 $18 38. Rxf6
Re3+ 39. R6f3 Rxf3+ 40. Rxf3 Rd8) 38. Rf7+ {[%emt 0:00:14]} (38. Rg5+ $142 Kh6
39. Kh4 Rg8 40. Rf6+ Kh7 41. Rf7+ Kh6 42. Rxg8 Re4 43. Rg5) 38... Kg6 {[%emt 0:
00:49]} 39. R1f6+ {[%emt 0:00:22] Weighted Error Value: White=0.10 (very
precise) /Black=0.63} 1-0

[Event "44th Chess Olympiad Open 2022"]
[Site "Chennai"]
[Date "2022.08.07"]
[Round "9.14"]
[White "Subelj, Jan"]
[Black "Berkes, Ferenc"]
[Result "1/2-1/2"]
[WhiteElo "2498"]
[BlackElo "2649"]
[Annotator "TA"]
[PlyCount "70"]
[EventDate "2022.??.??"]
[TimeControl "60"]

{[%evp 18,70,32,11,66,68,56,19,19,0,24,29,25,27,28,29,43,37,43,40,43,41,37,39,
60,63,69,61,50,50,64,0,0,0,0,0,0,0,0,0,0,0,8,8,9,12,27,0,0,0,0,0,0,0,0]} 1. e4
{[%emt 0:00:08]} e5 {[%emt 0:00:06]} 2. Nf3 {[%emt 0:00:23]} Nc6 {[%emt 0:00:
00]} 3. Bb5 {[%emt 0:00:32]} a6 {[%emt 0:00:07]} 4. Ba4 {[%emt 0:00:14]} Nf6 {
[%emt 0:00:06]} 5. O-O {[%emt 0:01:03]} Be7 {[%emt 0:00:11]} 6. Re1 {[%emt 0:
00:00]} b5 {[%emt 0:00:09]} 7. Bb3 {[%emt 0:00:09]} O-O {[%emt 0:00:12]} 8. a4
{[%emt 0:02:18]} Bb7 {[%emt 0:00:14]} 9. d3 {[%emt 0:03:18]} d6 {[%emt 0:00:22]
} 10. Nc3 {[%emt 0:04:44]} Nd4 {[%emt 0:07:02] C88: Closed Ruy Lopez:
Anti-Marshall Systems.} (10... Na5 $11) 11. Nxd4 $1 $14 {[%emt 0:00:24]} exd4 {
[%emt 0:00:05]} 12. Nd5 {[%emt 0:00:38]} Nxd5 {[%emt 0:00:11]} 13. Bxd5 {
[%emt 0:00:41]} Bxd5 {[%emt 0:01:05]} (13... c6 $5 {[%cal Rc6d5]} 14. Bb3 Qc7
$11) 14. exd5 {[%emt 0:03:32]} Qd7 {[%emt 0:00:24]} 15. b3 {[%emt 0:03:28]} Bf6
{[%emt 0:08:55]} 16. Qf3 {[%emt 0:02:36] Inhibits Qf5.} Rfe8 {[%emt 0:09:44]
[%cal Re8e1] [#]} 17. Bd2 {[%emt 0:00:38]} Rxe1+ {[%emt 0:00:47]} 18. Bxe1 {
[%emt 0:00:06] [#]} Re8 $146 {[%emt 0:00:16]} ({Predecessor:} 18... Qe8 19. Bd2
Be5 20. g3 g6 21. Bh6 f5 22. h4 a5 23. axb5 Qxb5 24. Ra4 Qc5 {1-0 (52) Lagno,K
(2541)-Dornbusch,T (2302) Monte Carlo 2017}) 19. Bd2 {[%emt 0:03:58]} Qd8 {
[%emt 0:02:07]} 20. g3 {[%emt 0:02:02]} Bg5 {[%emt 0:09:55]} 21. Bxg5 {[%emt 0:
00:00]} Qxg5 {[%emt 0:00:09]} 22. axb5 {[%emt 0:00:07]} axb5 {[%emt 0:00:05]
Endgame [#] KQR-KQR} 23. Qe4 $1 {[%emt 0:00:07][%cal Re4e8]} Qe5 {[%emt 0:05:
31]} 24. Ra7 {[%emt 0:12:03]} ({Better is} 24. Qxe5 $14 dxe5 25. Ra7) 24...
Qxe4 $11 {[%emt 0:07:04]} 25. dxe4 {[%emt 0:00:10] KR-KR} Kf8 {[%emt 0:00:00]}
26. f3 {[%emt 0:01:27]} f5 $1 {[%emt 0:02:42]} 27. exf5 {[%emt 0:02:26]} Re3 {
[%emt 0:01:58]} 28. Rxc7 {[%emt 0:04:14] And now Kf2 would win.} Rxf3 {[%emt 0:
00:11]} 29. f6 {[%emt 0:01:12]} gxf6 {[%emt 0:11:48]} 30. Rxh7 {[%emt 0:03:21]}
d3 {[%emt 0:04:15]} 31. cxd3 {[%emt 0:00:31]} Rxd3 {[%emt 0:00:00]} 32. Kf2 {
[%emt 0:03:58]} Rxb3 {[%emt 0:02:53] The position is equal.} 33. Rd7 {[%emt 0:
01:19]} Rd3 {[%emt 0:01:34]} 34. Rxd6 {[%emt 0:00:06]} Ke7 {[%emt 0:00:09]} 35.
Re6+ {[%emt 0:00:21]} Kf7 {[%emt 0:00:07] Weighted Error Value: White=0.07 
(flawless) /Black=0.08 (flawless)} 1/2-1/2

[Event "44th Chess Olympiad Open 2022"]
[Site "Chennai"]
[Date "2022.08.07"]
[Round "9.14"]
[White "Dobrovoljc, Vid"]
[Black "Acs, Peter"]
[Result "1/2-1/2"]
[WhiteElo "2398"]
[BlackElo "2575"]
[Annotator "TA"]
[PlyCount "40"]
[EventDate "2022.??.??"]
[TimeControl "60"]

{[%evp 10,40,22,10,12,16,15,0,16,27,25,17,32,35,62,39,66,76,77,62,76,73,73,49,
60,54,81,51,53,0,95,0,52]} 1. e4 {[%emt 0:00:10]} c5 {[%emt 0:00:17]} 2. Nf3 {
[%emt 0:00:09]} d6 {[%emt 0:00:18]} 3. Bb5+ {[%emt 0:00:23]} Bd7 {[%emt 0:00:
00]} 4. c4 {[%emt 0:01:52]} Nc6 {[%emt 0:04:56]} 5. d4 {[%emt 0:02:02]} cxd4 {
[%emt 0:05:23]} 6. Nxd4 {[%emt 0:00:53]} g6 {[%emt 0:02:46] B54: Sicilian: 2...
d6 3 d4 cxd4 4 Nxd4, Unusual Lines .} 7. O-O {[%emt 0:07:42]} Bg7 {[%emt 0:00:
00]} 8. Bxc6 {[%emt 0:00:17] has lost popularity (8.Be3).} Bxc6 {[%emt 0:07:09]
} 9. Nc3 {[%emt 0:04:24]} Nf6 {[%emt 0:00:31]} 10. Re1 {[%emt 0:04:00]} O-O {
[%emt 0:01:25]} 11. b3 {[%emt 0:14:03]} a5 {[%emt 0:20:07][%cal Ya5a4] [#]} 12.
Rb1 $146 {[%emt 0:17:10]} ({Predecessor:} 12. Bb2 Nd7 13. Qd2 Nc5 14. Rad1 Bd7
15. h3 a4 16. b4 a3 17. Ba1 Na4 18. Nb1 {1-0 (40) Cornette,M (2586)-Moussard,J
(2487) Saint Quentin 2015}) 12... Nd7 {[%emt 0:06:17]} 13. Be3 {[%emt 0:04:12]
White is more active.} Nc5 {[%emt 0:05:24]} 14. Qc2 {[%emt 0:06:09]} Bd7 {
[%emt 0:03:03]} 15. Rbd1 {[%emt 0:05:01]} Rc8 {[%emt 0:03:07]} 16. h3 {[%emt 0:
00:00]} Re8 {[%emt 0:08:08]} 17. a4 {[%emt 0:09:08]} Na6 {[%emt 0:05:25]} 18.
Qd2 {[%emt 0:01:59]} Nc5 {[%emt 0:01:00]} 19. Qc2 {[%emt 0:00:44]} Na6 $1 {
[%emt 0:00:15]} 20. Qd2 {[%emt 0:03:43]} Nc5 {[%emt 0:01:20] Weighted Error
Value: White=0.16 (very precise) /Black=0.09 (flawless)} 1/2-1/2

[Event "44th Chess Olympiad Open 2022"]
[Site "Chennai"]
[Date "2022.08.07"]
[Round "9.15"]
[White "Lupulescu, Constantin"]
[Black "Schitco, Ivan"]
[Result "0-1"]
[WhiteElo "2628"]
[BlackElo "2490"]
[Annotator "TA"]
[PlyCount "136"]
[EventDate "2022.??.??"]
[TimeControl "60"]

{[%evp 21,136,0,0,0,0,0,0,0,0,0,30,0,6,8,19,0,10,0,0,0,0,0,0,0,0,-17,0,-35,-12,
-24,0,-8,-15,0,0,-71,-78,-91,-96,-139,-85,-122,-122,-114,-103,-118,-98,-89,-84,
-69,-84,-96,-52,-47,-33,-224,-153,-229,-54,-42,0,-255,-256,-258,-257,-254,-243,
-258,-266,-258,-247,-251,-248,-242,-235,-239,-229,-435,-403,-397,-422,-559,
-550,-534,-506,-597,-584,-506,-322,-620,-593,-569,-560,-469,-433,-660,-604,
-511,-542,-1231,-1389,-1577,-1160,-1729,-1652,-2056,-1988,-1806,-837,-1840,
-1609,-29982,-29982,-29982,-29983,-29956,-8802]} 1. d4 {[%emt 0:00:04]} d5 {
[%emt 0:00:09]} 2. Nf3 {[%emt 0:00:09]} Nf6 {[%emt 0:00:40]} 3. c4 {[%emt 0:00:
00]} e6 {[%emt 0:00:12]} 4. cxd5 {[%emt 0:00:11]} exd5 {[%emt 0:00:44]} 5. Nc3
{[%emt 0:00:05]} c6 {[%emt 0:03:32]} 6. Qc2 {[%emt 0:00:28]} g6 {[%emt 0:02:51]
} 7. Bg5 {[%emt 0:00:26]} Be7 {[%emt 0:02:58]} 8. e3 {[%emt 0:00:54]} Bf5 {
[%emt 0:01:43]} 9. Bd3 {[%emt 0:00:18]} Bxd3 {[%emt 0:00:15]} 10. Qxd3 {
[%emt 0:00:04]} Nbd7 {[%emt 0:01:48]} 11. Bh6 {[%emt 0:00:29]} Bf8 {[%emt 0:00:
00]} 12. Bf4 {[%emt 0:00:45] D36: Queen's Gambit Declined: Exchange Variation:
Main line (5 Bg5 c6 6 Qc2).} Nh5 {[%emt 0:07:32] [#]} 13. O-O-O $146 {[%emt 0:
00:00]} ({Predecessor:} 13. Bg5 Be7 14. Bh6 Bf8 15. Bxf8 Kxf8 16. O-O Kg7 17.
b4 a6 18. a4 Qe7 19. b5 axb5 20. axb5 {1-0 (55) Volkov,S (2625)-Kapnisis,S 
(2429) Korinthos 2004}) 13... Nxf4 {[%emt 0:06:47]} 14. exf4 {[%emt 0:00:14]
The position is equal.} Bd6 {[%emt 0:03:28]} 15. g3 {[%emt 0:06:53]} Qf6 {
[%emt 0:04:39]} 16. Rde1+ {[%emt 0:04:32]} Kd8 {[%emt 0:01:53]} 17. h4 {
[%emt 0:29:27]} h5 {[%emt 0:06:46]} 18. Ne5 {[%emt 0:04:42]} Nb6 {[%emt 0:00:
00]} 19. Qc2 {[%emt 0:04:55]} Re8 {[%emt 0:08:15]} 20. Re3 {[%emt 0:01:58]} Re7
{[%emt 0:03:22]} 21. Rhe1 {[%emt 0:07:40]} Rc8 {[%emt 0:12:28]} 22. Kb1 {
[%emt 0:17:33]} Rcc7 {[%emt 0:02:26]} 23. a4 {[%emt 0:02:57]} a5 {[%emt 0:00:
00]} 24. Qb3 {[%emt 0:02:58]} Nc8 {[%emt 0:01:25][%cal Yb6c8,Yc8d6,Yd6f5]} 25.
Ka1 {[%emt 0:02:31]} Qf5 {[%emt 0:03:18]} 26. Nd1 $1 {[%emt 0:01:24]} Bb4 {
[%emt 0:01:36]} 27. R1e2 {[%emt 0:00:49]} Qf6 {[%emt 0:01:17]} 28. Nc3 {
[%emt 0:01:24]} (28. Rf3 $11 {keeps the balance.}) 28... Nd6 $17 {[%emt 0:00:
00]} 29. Rd3 {[%emt 0:05:37]} Nf5 {[%emt 0:01:41]} 30. Nd1 {[%emt 0:00:28]} Qg7
{[%emt 0:02:04]} ({Better is} 30... Qe6 $1 {aiming for ...f6.} 31. Rc2 f6) 31.
Rc2 {[%emt 0:02:25]} f6 {[%emt 0:01:21]} 32. Nf3 {[%emt 0:00:03]} Qf8 {[%emt 0:
00:00]} 33. Nc3 {[%emt 0:00:33]} Qe8 {[%emt 0:01:40]} 34. Na2 {[%emt 0:00:49]}
Re2 {[%emt 0:00:31]} 35. Nxb4 {[%emt 0:00:33]} axb4 {[%emt 0:00:06]} 36. Ka2 {
[%emt 0:01:47]} Rxc2 {[%emt 0:02:37] Black is more active.} 37. Qxc2 {[%emt 0:
00:00]} Qe4 {[%emt 0:00:21]} 38. Qb3 $2 {[%emt 0:00:48]} (38. Qd2 $1 $15) 38...
Re7 {[%emt 0:01:29]} 39. Rd1 {[%emt 0:00:17]} (39. Kb1 $17) 39... Qe2 $2 {
[%emt 0:01:00]} ({Black should try} 39... b5 $1 $19 {[%cal Rb5a4] Threatens to
win with ...bxa4.} 40. a5 Ra7) 40. Rd2 $15 {[%emt 0:00:12]} Qe4 {[%emt 0:02:28]
} (40... Qa6 $15) 41. Rd1 $19 {[%emt 0:05:54] [#] Black keeps a firm grip on
the game.} b5 $1 {[%emt 0:11:17]} 42. a5 {[%emt 0:10:33] And now Re1 would win.
} Ra7 {[%emt 0:01:21][%cal Ye7a7,Ya7a5,Ya5a1]} 43. Qd3 {[%emt 0:00:51]} Rxa5+ {
[%emt 0:01:07]} 44. Kb3 {[%emt 0:00:10]} Qxd3+ {[%emt 0:01:32]} 45. Rxd3 {
[%emt 0:00:04] Endgame [#] KRN-KRN} Ra1 {[%emt 0:00:06] Inhibits Rd1.} 46. Kxb4
{[%emt 0:02:18]} Rf1 {[%emt 0:01:26]} 47. Rd2 {[%emt 0:00:00]} Nd6 {[%emt 0:02:
14]} 48. Re2 {[%emt 0:00:49]} Ne4 {[%emt 0:01:38]} 49. Nd2 $2 {[%emt 0:00:36]}
(49. Ka5 {was called for.}) 49... Rxf2 {[%emt 0:00:46]} 50. Rxf2 {[%emt 0:00:
11]} Nxf2 {[%emt 0:00:04] KN-KN} 51. Nf1 {[%emt 0:04:21]} Ne4 {[%emt 0:02:39]}
52. Kb3 {[%emt 0:00:42]} Kd7 {[%emt 0:02:20]} 53. Kc2 {[%emt 0:00:02]} Ke6 {
[%emt 0:01:58]} 54. Kd3 {[%emt 0:00:37]} b4 {[%emt 0:00:00]} 55. Kc2 $2 {
[%emt 0:01:32]} (55. Ke2) 55... c5 {[%emt 0:01:39]} 56. dxc5 {[%emt 0:00:02]}
Nxc5 {[%emt 0:00:06] Hoping for ...d4.} 57. Ne3 {[%emt 0:00:27]} Ne4 {[%emt 0:
04:35]} 58. Kb3 {[%emt 0:00:44]} (58. g4 $142 d4 59. f5+ gxf5 60. gxf5+ Kd6 61.
Nf1) 58... d4 {[%emt 0:00:50]} 59. Nc2 {[%emt 0:02:11]} Nxg3 {[%emt 0:00:55] ..
.Kf5 is the strong threat.} ({Avoid the trap} 59... d3 $2 60. Nxb4 d2 61. Kc2
$19) 60. Nxd4+ {[%emt 0:00:08]} Kd5 {[%emt 0:00:17]} 61. Nc2 {[%emt 0:00:07]}
Nf5 {[%emt 0:00:24]} 62. Nxb4+ {[%emt 0:01:02]} Ke4 {[%emt 0:00:00]} 63. Kc4 {
[%emt 0:00:21]} Kxf4 {[%emt 0:00:30] White must now prevent .. .g5.} 64. Nd5+ {
[%emt 0:01:20]} Ke5 {[%emt 0:00:13]} (64... Kf3 $142 65. Nxf6 g5 66. hxg5 h4)
65. b4 {[%emt 0:00:33]} g5 {[%emt 0:00:53][%cal Yg6g5,Yg5h4,Yh4h3]} 66. Nb6 {
[%emt 0:01:11]} gxh4 {[%emt 0:00:56] Black mates.} 67. Nd7+ {[%emt 0:00:22]}
Kf4 {[%emt 0:00:36]} 68. Nxf6 {[%emt 0:00:47]} h3 {[%emt 0:00:12] Weighted
Error Value: White=0.42/Black=0.14 (very precise)} 0-1